fUSD/lending_fUSD_20240829
["ID","MTS","AMOUNT","RATE_DAILY","PERIOD"]
[336548861,1724949056391,-151.0,0.000181,2]
[336548862,1724949056401,-151.0,0.000181,2]
[336548863,1724949056411,-788.121559,0.000181,2]
[336548864,1724949056421,-151.0,0.000181,2]
[336548865,1724949056430,-788.121559,0.000181,2]
[336548866,1724949056441,-275.63931,0.000181,2]
[336548867,1724949056450,-275.63931,0.000181,2]
[336548868,1724949056459,-151.0,0.000181,2]
[336548869,1724949056469,-10000.0,0.000181,2]
[336548870,1724949056479,-10000.0,0.000181,2]
[336548871,1724949056488,-10000.0,0.000181,2]
[336548872,1724949056497,-10000.0,0.000181,2]
[336548873,1724949056507,-10000.0,0.000181,2]
[336548874,1724949056516,-205.895933,0.000181,2]
[336548875,1724949056526,-205.895933,0.000181,2]
[336548876,1724949056535,-151.0,0.000181,2]
[336548877,1724949056545,-151.0,0.000181,2]
[336548878,1724949056554,-151.0,0.000181,2]
[336548879,1724949056566,-151.0,0.000181,2]
[336548880,1724949056586,-151.110675,0.000181,2]
[336548881,1724949056595,-151.110675,0.000181,2]
[336548882,1724949056604,-189.337992,0.000181,2]
[336548883,1724949056613,-189.337992,0.000181,2]
[336548884,1724949056623,-151.0,0.000181,2]
[336548885,1724949056633,-876.31738169,0.00018121,2]
[336548886,1724949056647,-308.62770015,0.00018121,2]
[336548887,1724949056656,-391.22338398,0.00018121,2]
[336548888,1724949056665,-150.0,0.0001834,2]
[336548889,1724949056675,-266.702479,0.00018356,2]
[336548890,1724949056684,-876.31738169,0.00018409,2]
[336548891,1724949056694,-308.62770015,0.00018409,2]
[336548892,1724949056704,-391.22338398,0.00018409,2]
[336548893,1724949056714,-150.0,0.00018421,2]
[336548894,1724949056727,-167.0,0.00018444,2]
[336548895,1724949056737,-1000.0,0.000185,7]
[336548896,1724949056746,-177.341794,0.000185,6]
[336548897,1724949056756,-5647.27,0.000185,7]
[336548898,1724949056766,-1071.859392,0.000185,2]
[336548899,1724949056776,-150.0,0.00018625,2]
[336548900,1724949056785,-150.0,0.00018625,2]
[336548901,1724949056795,-1475.76,0.00018633,2]
[336548902,1724949056805,-876.31738169,0.00018697,2]
[336548903,1724949056816,-308.62770015,0.00018697,2]
[336548904,1724949056825,-391.22338398,0.00018697,2]
[336548905,1724949056835,-5467.69281271,0.00018715,2]
[336548906,1724949056845,-1504.739284,0.000188,2]
[336548907,1724949056855,-151.0,0.000188,2]
[336548908,1724949056864,-151.0,0.000188,2]
[336548909,1724949056874,-150.0,0.00018829,2]
[336548910,1724949056883,-150.8396667,0.00018866,2]
[336548911,1724949056893,-163.94885825,0.00018873,2]
[336548912,1724949056902,-255.29376595,0.000189,2]
[336548913,1724949056912,-420.55148386,0.000189,2]
[336548914,1724949056921,-172.46467046,0.000189,2]
[336548915,1724949056931,-2813.0200712,0.000189,2]
[336548916,1724949056940,-1146.12512374,0.00018921,2]
[336548917,1724949056950,-73530.63839897,0.00018956,2]
[336548918,1724949056962,-150.0,0.00018973,2]
[336548919,1724949056972,-230.405102,0.00018974,2]
[336548920,1724949056981,-334.363038,0.00018974,2]
[336548921,1724949056990,-230.40510532,0.00018974,2]
[336548922,1724949057000,-334.363038,0.00018974,2]
[336548923,1724949057009,-168.52,0.0001898,30]
[336548924,1724949057018,-876.31738169,0.00018985,2]
[336548925,1724949057027,-308.62770015,0.00018985,2]
[336548926,1724949057037,-391.22338398,0.00018985,2]
[336548927,1724949057047,-252.980298,0.00018987,2]
[336548928,1724949057056,-151.0,0.00018987,2]
[336548929,1724949057066,-252.980298,0.00018987,2]
[336548930,1724949057075,-151.0,0.00018987,2]
[336548931,1724949057084,-1794.737045,0.00018987,2]
[336548932,1724949057093,-1794.737045,0.00018987,2]
[336548933,1724949057102,-472.598292,0.00018987,2]
[336548934,1724949057111,-274.81222,0.00018987,2]
[336548935,1724949057120,-472.598292,0.00018987,2]
[336548936,1724949057130,-151.0,0.00018987,2]
[336548937,1724949057139,-172.294288,0.00018987,2]
[336548938,1724949057148,-329.686209,0.00018987,2]
[336548939,1724949057158,-329.686209,0.00018987,2]
[336548940,1724949057168,-1967.230135,0.00018987,2]
[336548941,1724949057178,-58362.4454636,0.00018987,2]
[336548942,1724949057187,-436.796264,0.00018987,2]
[336548943,1724949057197,-436.796264,0.00018987,2]
[336548944,1724949057206,-486.906612,0.00018987,2]
[336548945,1724949057216,-799.692265,0.00018987,2]
[336548946,1724949057225,-486.906612,0.00018987,2]
[336548947,1724949057234,-799.692265,0.00018987,2]
[336548948,1724949057243,-341.209459,0.00018987,2]
[336548949,1724949057253,-3898.8397271,0.00018987,2]
[336548950,1724949057263,-341.209459,0.00018987,2]
[336548951,1724949057272,-999.63973794,0.00018997,2]
[336548952,1724949057282,-1127.28629156,0.00019,2]
[336548953,1724949057291,-12414.25860662,0.00019,2]
[336548954,1724949057300,-2021562.47248799,0.00019,10]
[336548955,1724949057319,-388.005,0.00019,10]
[336548956,1724949057331,-11246.58548962,0.00019,10]
[336548957,1724949060784,173.31,0.00010959,2]
[336548958,1724949060867,-427.09,0.000115,2]
[336548959,1724949060877,-151.0,0.0001389,2]
[336548960,1724949060887,-3464.78695368,0.00019,10]
[336548961,1724949060899,-335.30570427,0.00019,10]
[336548962,1724949060911,-12989.0962033,0.00019,10]
[336548963,1724949060922,-692.17038355,0.00019,10]
[336548964,1724949060933,-262.87078946,0.00019,10]
[336548965,1724949060946,-15445.5966,0.00019,10]
[336548966,1724949061066,-34665.0926168,0.00019,10]
[336548967,1724949061078,-677.57587675,0.00019,10]
[336548968,1724949061106,-1208.0,0.00019,10]
[336548969,1724949061118,-286135.81117556,0.00019,10]
[336548970,1724949061129,-3089.684,0.00019,10]
[336548971,1724949061140,-590.562495,0.00019,10]
[336548972,1724949061151,-2663.8163552,0.00019,10]
[336548973,1724949061198,-252.63,0.0001149,2]
[336548974,1724949061208,-108.92571279,0.00019,10]
[336548975,1724949081415,2962.46,0.00010238,2]
[336548976,1724949140170,210.0,0.000109,2]
[336548977,1724949140483,210.0,0.0001081,2]
[336548978,1724949140911,210.0,0.0001072,2]
[336548979,1724949181293,517.0,0.00024,120]
[336548980,1724949403047,176.24,0.00010959,2]
[336548985,1724950118721,373.23,0.00010959,2]
[336549007,1724950233056,-210.0,0.0001098,2]
[336549008,1724950233067,-300.0,0.00010988,2]
[336549009,1724950233080,-790.0,0.00010989,2]
[336549010,1724950233092,-745.46462671,0.00010989,2]
[336549011,1724950233105,-620.88026,0.00010989,2]
[336549012,1724950233121,-2966.48754,0.00010989,2]
[336549013,1724950233140,-552.87989434,0.00010989,2]
[336549018,1724950237675,-310.245,0.00010989,2]
[336549019,1724950237838,-547.54749979,0.00010989,2]
[336549020,1724950237850,-945.62062775,0.00010989,2]
[336549180,1724950239432,-588.71439878,0.00010989,2]
[336549199,1724950239599,-10000.0,0.00010989,2]
[336549206,1724950239658,-642.79791123,0.00010989,2]
[336549213,1724950239718,-13561.9271414,0.00010989,2]
[336549215,1724950239727,-2958.6728586,0.00010989,2]
[336549218,1724950239739,-992.22492613,0.00010989,2]
[336549220,1724950239753,-495.6,0.00010989,2]
[336549222,1724950239768,-676.14801527,0.00010989,2]
[336549224,1724950239778,-8.56192376,0.00010989,2]
[336549227,1724950239793,-3084.66972356,0.00010989,2]
[336549229,1724950239804,-923.5443645,0.00010989,2]
[336549231,1724950239816,-292.56283861,0.00010989,2]
[336549504,1724950242590,-247.57,0.00010979,2]
[336549507,1724950242600,-247.57,0.00010979,2]
[336549509,1724950242609,-6804.86,0.00010989,2]
[336549513,1724950242621,-4385.58484957,0.00010989,2]
[336549516,1724950242630,-1300.0,0.00011,4]
[336549518,1724950242640,-976.52891443,0.00011,2]
[336549524,1724950242694,-233.60108557,0.00011,2]
[336549526,1724950242704,-247.57,0.0001106,2]
[336549528,1724950242714,-247.57,0.00011069,2]
[336549530,1724950242724,-210.0,0.0001107,2]
[336549532,1724950242733,-363.44296453,0.00011079,2]
[336549535,1724950242745,-9950.47370427,0.00011079,2]
[336549537,1724950242757,-499.99,0.00011079,2]
[336549539,1724950242767,-210.0,0.0001115,2]
[336549541,1724950242777,-210.0,0.00011189,2]
[336549543,1724950242787,-210.0,0.00011189,2]
[336549545,1724950242797,-210.0,0.00011189,2]
[336549547,1724950242807,-210.0,0.0001124,2]
[336549549,1724950242817,-325.89,0.00011818,2]
[336549551,1724950242826,-1154.0,0.00011818,2]
[336549553,1724950242836,-764.0,0.00011818,2]
[336549555,1724950242845,-34.81808721,0.00011818,2]
[336549557,1724950242857,-213.18191279,0.00011818,2]
[336549559,1724950242866,-146.5566494,0.00011818,2]
[336549759,1724950245051,-3173.4433506,0.00011818,2]
[336549761,1724950245060,-150.074,0.00011818,2]
[336549763,1724950245069,-420.0,0.00012075,2]
[336549765,1724950245078,-163.54,0.00013176,2]
[336549766,1724950245089,-587.0,0.00013269,2]
[336549767,1724950245098,-178.57,0.00013699,2]
[336549769,1724950245108,-150.0,0.00014,2]
[336549771,1724950245117,-500.0,0.00014068,2]
[336549773,1724950245128,-97.7876494,0.00014068,2]
[336549775,1724950245139,-402.2123506,0.00014068,2]
[336549777,1724950245150,-180.32,0.00014553,2]
[336549779,1724950245159,-823.0,0.00014581,2]
[336549781,1724950245169,-400.0,0.00014866,2]
[336549782,1724950245178,-260.3448,0.00014949,2]
[336549784,1724950245188,-1000.0,0.00014982,2]
[336549786,1724950245197,-2153.0,0.00015,10]
[336549788,1724950245207,-181.51885792,0.00015,2]
[336549791,1724950245226,-958.48114208,0.00015,2]
[336549793,1724950245236,-1500.0,0.00015,2]
[336549795,1724950245245,-173.85,0.00015033,2]
[336549797,1724950245255,-250.0,0.00015034,2]
[336549799,1724950245265,-200.0,0.00015035,2]
[336549801,1724950245275,-802.09,0.00015035,2]
[336549804,1724950245284,-5185.33,0.00015035,2]
[336549806,1724950245294,-150.0,0.00015086,2]
[336549808,1724950245303,-500.0,0.00015164,2]
[336549810,1724950245312,-500.0,0.00015164,2]
[336549812,1724950245322,-2000.0,0.00015248,2]
[336549814,1724950245331,-3280.42,0.00015248,2]
[336549816,1724950245340,-250.0,0.00015317,2]
[336549818,1724950245349,-150.0,0.0001535,2]
[336549820,1724950245358,-2751.0,0.00015408,2]
[336549822,1724950245367,-163.54,0.0001544,2]
[336549824,1724950245376,-167.0,0.00015831,2]
[336549826,1724950245386,-320.0,0.00016,5]
[336549828,1724950245395,-1152.0,0.00016023,2]
[336549830,1724950245405,-167.0,0.00016354,2]
[336549832,1724950245415,-400.0,0.00016724,2]
[336549833,1724950245425,-500.0,0.00016808,2]
[336549834,1724950245434,-500.0,0.00016808,2]
[336549835,1724950245443,-1000.0,0.00016855,2]
[336549836,1724950245452,-167.0,0.00016876,2]
[336549837,1724950245462,-500.0,0.00017258,2]
[336549838,1724950245471,-500.0,0.00017285,2]
[336549839,1724950245480,-500.0,0.00017313,2]
[336549840,1724950245491,-300.0,0.00017328,5]
[336549841,1724950245500,-500.0,0.0001734,2]
[336549842,1724950245510,-500.0,0.00017368,2]
[336549843,1724950245520,-500.0,0.00017395,2]
[336549845,1724950245529,-167.0,0.00017399,2]
[336549847,1724950245539,-500.0,0.00017422,2]
[336549849,1724950245548,-500.0,0.0001745,2]
[336549851,1724950245558,-500.0,0.00017477,2]
[336549853,1724950245568,-500.0,0.00017505,2]
[336549854,1724950245577,-500.0,0.00017532,2]
[336549857,1724950245587,-500.0,0.00017559,2]
[336549858,1724950245597,-500.0,0.00017587,2]
[336549860,1724950245606,-373.23,0.00017592,2]
[336549862,1724950245616,-1613.0,0.00017608,2]
[336549864,1724950245625,-500.0,0.00017614,2]
[336549866,1724950245635,-500.0,0.00017642,2]
[336549868,1724950245645,-500.0,0.00017669,2]
[336549870,1724950245654,-500.0,0.00017696,2]
[336549872,1724950245663,-163.54,0.00017704,2]
[336549874,1724950245672,-500.0,0.00017724,2]
[336549876,1724950245682,-500.0,0.00017751,2]
[336549878,1724950245691,-500.0,0.00017779,2]
[336549879,1724950245700,-500.0,0.00017806,2]
[336549881,1724950245709,-500.0,0.00017833,2]
[336549883,1724950245718,-500.0,0.00017861,2]
[336549885,1724950245727,-500.0,0.00017888,2]
[336549887,1724950245736,-500.0,0.00017904,2]
[336549889,1724950245745,-500.0,0.00017904,2]
[336549890,1724950245755,-500.0,0.00017916,2]
[336549892,1724950245764,-167.0,0.00017921,2]
[336549894,1724950245773,-500.0,0.00017943,2]
[336549896,1724950245782,-500.0,0.0001797,2]
[336549898,1724950245791,-500.0,0.00017998,2]
[336549899,1724950245800,-154.318887,0.00018,5]
[336549900,1724950245810,-500.0,0.00018025,2]
[336549901,1724950245819,-500.0,0.00018053,2]
[336549902,1724950245828,-500.0,0.0001808,2]
[336549903,1724950245837,-527.52603893,0.00018097,3]
[336549916,1724950246134,-339.02396107,0.00018097,3]
[336549918,1724950246150,-500.0,0.00018107,2]
[336549920,1724950246160,-682.69782702,0.00018135,2]
[336549922,1724950246169,-524.0,0.00018444,2]
[336549924,1724950246178,-167.0,0.00018444,2]
[336549926,1724950246187,-2823.64,0.000185,7]
[336549928,1724950246197,-2187.07712512,0.00018517,2]
[336549930,1724950246206,-400.0,0.00018583,2]
[336549932,1724950246215,-1233.5455,0.00018605,2]
[336549934,1724950246225,-305.47677564,0.00018614,2]
[336549936,1724950246235,-693.1867,0.00018615,2]
[336549938,1724950246244,-217.0,0.00018615,2]
[336549940,1724950246254,-2958.1018,0.00018615,2]
[336549942,1724950246263,-212.5945,0.00018615,2]
[336549944,1724950246273,-2749.63540913,0.00018615,2]
[336549946,1724950246285,-557.89159087,0.00018615,2]
[336549948,1724950246294,-454.5627,0.00018615,2]
[336549950,1724950246304,-2500.0,0.00018615,2]
[336549952,1724950246314,-179.90161929,0.0001862,2]
[336549954,1724950246323,-150.82,0.00018695,2]
[336549956,1724950246333,-1156.82408984,0.00018705,2]
[336549960,1724950246358,-15489.249,0.00018705,2]
[336549962,1724950246369,-19345.211135,0.00018705,2]
[336549964,1724950246385,-1720.3100005,0.00018705,2]
[336549967,1724950246396,-328.04999985,0.00018705,2]
[336549969,1724950246407,-618.59,0.00018705,2]
[336550056,1724950247362,-247.57,0.00011069,2]
[336550058,1724950247372,-247.57,0.00011069,2]
[336550060,1724950247382,-247.57,0.00011808,2]
[336550062,1724950247391,-247.57,0.00011808,2]
[336550064,1724950247400,-247.57,0.00013259,2]
[336550066,1724950247410,-247.57,0.00014856,2]
[336550068,1724950247419,-247.57,0.0001499,2]
[336550070,1724950247428,-247.57,0.0001499,2]
[336550072,1724950247438,-247.57,0.00015025,2]
[336550073,1724950247447,-247.57,0.00015025,2]
[336550075,1724950247457,-247.57,0.00015238,2]
[336550077,1724950247466,-261.84727615,0.00018705,2]
[336550080,1724950247491,-247.57,0.00015238,2]
[336550082,1724950247500,-5805.06824,0.00018705,2]
[336550086,1724950247529,-656.37,0.00018705,2]
[336550100,1724950247675,-3106.77721964,0.00018705,2]
[336550115,1724950247819,-1470.51803953,0.00018705,2]
[336550117,1724950247830,-6587.95848932,0.00018705,2]
[336550120,1724950247841,-2289.91559988,0.00018705,2]
[336550122,1724950247852,-5930.48493681,0.00018705,2]
[336550124,1724950247864,-1517.4599077,0.00018705,2]
[336550126,1724950247875,-5486.25292594,0.00018705,2]
[336550128,1724950247891,-247.57,0.00015397,2]
[336550130,1724950247900,-262.73234122,0.00018705,2]
[336550132,1724950247911,-63336.92889818,0.00018705,2]
[336550135,1724950247925,-792.73224283,0.00018705,2]
[336550137,1724950247936,-6770.28999999,0.00018705,2]
[336550257,1724950909331,186.25460476,0.000109,2]
[336550258,1724950910698,165.048948,0.00010644,2]
[336550259,1724950916300,165.048948,0.00010644,2]
[336550260,1724950916546,165.048948,0.0001091,2]
[336550261,1724950979168,1050.0,0.0001,2]
[336550262,1724950986794,1445.19972517,0.000109,2]
[336550275,1724951403197,150.0,0.000109,2]
[336550276,1724951403654,150.0,0.000109,2]
[336550277,1724951403868,150.0,0.000109,2]
[336550278,1724951404066,150.0,0.000109,2]
[336550279,1724951404271,150.0,0.000109,2]
[336550280,1724951404468,150.0,0.000109,2]
[336550281,1724951404959,150.0,0.000109,2]
[336550282,1724951405123,150.0,0.000109,2]
[336550283,1724951405322,150.0,0.000109,2]
[336550284,1724951405559,150.0,0.000109,2]
[336550285,1724951405783,150.0,0.000109,2]
[336550286,1724951405925,202.39268906,0.000109,2]
[336550295,1724951431677,-589.0,0.00010999,2]
[336550296,1724951431687,-605.06,0.00011,2]
[336550297,1724951431697,-10.94,0.00011176,2]
[336550349,1724951432611,-154.108948,0.00011176,2]
[336550351,1724951432622,-178.57,0.00013699,2]
[336550353,1724951432634,-188.32,0.00014216,2]
[336550355,1724951432643,-180.67,0.00014425,2]
[336550356,1724951432652,-154.4,0.00014461,2]
[336550358,1724951432663,-201.0,0.00015105,2]
[336550360,1724951432672,-1000.0,0.0001513,2]
[336550362,1724951432682,-300.0,0.00015163,2]
[336550364,1724951432692,-500.0,0.00015164,2]
[336550366,1724951432701,-500.0,0.00015164,2]
[336550368,1724951432711,-500.0,0.00015164,2]
[336550369,1724951432720,-500.0,0.00015164,2]
[336550371,1724951432730,-499.99,0.00015205,2]
[336550373,1724951432739,-565.632,0.0001592,2]
[336550375,1724951432748,-320.0,0.00016,5]
[336550377,1724951432758,-268.36,0.00016257,2]
[336550378,1724951432768,-34.949052,0.00016343,2]
[336550382,1724951432801,-302.15454,0.00016343,2]
[336550839,1724951437796,-662.896408,0.00016343,2]
[336550841,1724951437805,-1405.08351005,0.00016361,2]
[336550851,1724951437906,-1095.67068968,0.00016361,2]
[336551021,1724951439656,-8559.54580027,0.00016361,2]
[336551023,1724951439665,-1975.9,0.00016387,2]
[336551025,1724951439675,-242.11,0.00016425,2]
[336551028,1724951439684,-850.2,0.00016497,2]
[336551030,1724951439694,-10000.0,0.00016505,2]
[336551032,1724951439704,-420.0,0.00016592,2]
[336551034,1724951439713,-180.67,0.00016689,2]
[336551035,1724951439724,-228.68,0.00016847,2]
[336551037,1724951439734,-160.0,0.00016849,2]
[336551039,1724951439744,-228.68,0.00016852,2]
[336551041,1724951439753,-228.68,0.00016856,2]
[336551043,1724951439763,-228.68,0.0001686,2]
[336551045,1724951439772,-228.68,0.00016865,2]
[336551047,1724951439782,-228.68,0.00016869,2]
[336551049,1724951439792,-228.68,0.00016874,2]
[336551051,1724951439801,-228.68,0.00016878,2]
[336551053,1724951439811,-228.68,0.00016883,2]
[336551055,1724951439820,-228.68,0.00016887,2]
[336551057,1724951439830,-2751.0,0.0001689,2]
[336551059,1724951439840,-228.68,0.00016891,2]
[336551060,1724951439850,-228.68,0.00016896,2]
[336551062,1724951439859,-172.31,0.00016897,2]
[336551064,1724951439869,-228.68,0.000169,2]
[336551066,1724951439879,-228.68,0.00016905,2]
[336551068,1724951439889,-228.68,0.00016909,2]
[336551070,1724951439898,-228.68,0.00016914,2]
[336551072,1724951439908,-228.68,0.00016918,2]
[336551074,1724951439919,-228.68,0.00016923,2]
[336551076,1724951439928,-228.68,0.00016927,2]
[336551078,1724951439937,-228.68,0.00016931,2]
[336551080,1724951439947,-250.0,0.00017039,2]
[336551082,1724951439957,-240.0,0.00017255,2]
[336551084,1724951439966,-1000.0,0.00017732,2]
[336551086,1724951439976,-200.0,0.0001777,2]
[336551088,1724951439987,-167.0,0.00017772,2]
[336551090,1724951439996,-373.64821372,0.00017904,2]
[336551092,1724951440005,-500.0,0.00017904,2]
[336551094,1724951440015,-500.0,0.00017904,2]
[336551096,1724951440025,-500.0,0.00017904,2]
[336551098,1724951440034,-587.0,0.00018156,2]
[336551100,1724951440044,-167.0,0.00018359,2]
[336551102,1724951440053,-351.57017114,0.00018366,2]
[336551104,1724951440062,-1000.0,0.00018386,2]
[336551106,1724951440072,-1411.82,0.000185,7]
[336551108,1724951440081,-3399.23897511,0.0001852,2]
[336551110,1724951440094,-1511.47,0.0001852,2]
[336551113,1724951440105,-361.415,0.0001852,2]
[336551145,1724951440422,-1185.41627808,0.0001852,2]
[336551147,1724951440433,-258.58372192,0.00018605,2]
[336551155,1724951440505,-426.54797808,0.00018605,2]
[336551157,1724951440517,-138.75202192,0.00018605,2]
[336551160,1724951440530,-930.98547808,0.00018605,2]
[336551162,1724951440539,-4501.7884,0.00018605,2]
[336551164,1724951440550,-300.461,0.00018605,2]
[336551166,1724951440560,-1968.36941259,0.00018612,2]
[336551168,1724951440569,-214.7585,0.00018615,2]
[336551170,1724951440579,-5748.4558,0.00018615,2]
[336551172,1724951440588,-300.0,0.00018633,5]
[336551174,1724951440597,-179.90161929,0.0001865,2]
[336551176,1724951440608,-500.0,0.00018702,2]
[336551177,1724951440618,-500.0,0.00018705,2]
[336551179,1724951440627,-337.45943,0.00018705,2]
[336551181,1724951440637,-17774.18100104,0.00018705,2]
[336551432,1724951443725,-304.4341043,0.00011313,2]
[336551453,1724951443923,-1118.97,0.00011313,2]
[336551706,1724951446372,-260.0,0.00011313,2]
[336551709,1724951446391,-2158.05737989,0.00011313,2]
[336551713,1724951446418,-648.45221928,0.00011313,2]
[336551715,1724951446437,-5510.08629653,0.00011313,2]
[336551717,1724951446447,-1498.02475106,0.00018705,2]
[336551815,1724952105137,3500.0,0.0001078,2]
[336551816,1724952105803,2900.0,0.0001078,2]
[336551818,1724952184622,152.57,0.00010959,2]
[336551820,1724952383339,1050.0,0.0001089,2]
[336551821,1724952406165,3143.70047368,0.000109,2]
[336551825,1724952450718,305.47677564,0.000109,2]
[336551826,1724952476516,422.35,0.00010959,2]
[336551828,1724952526047,516.81257679,0.000115,30]
[336551829,1724952570166,305.47677564,0.000109,2]
[336551831,1724952615047,351.1151,0.0001089,2]
[336551838,1724952631725,-150.0,0.00010989,2]
[336551840,1724952631736,-163.4,0.0001099,2]
[336551842,1724952631745,-163.4,0.0001099,2]
[336551845,1724952631754,-163.4,0.0001099,2]
[336551848,1724952631763,-163.4,0.0001099,2]
[336551851,1724952631773,-163.4,0.0001099,2]
[336551852,1724952631782,-163.4,0.0001099,2]
[336551853,1724952631792,-163.4,0.0001099,2]
[336551854,1724952631802,-163.4,0.0001099,2]
[336551855,1724952631814,-163.4,0.0001099,2]
[336551856,1724952631823,-163.4,0.0001099,2]
[336551857,1724952631832,-163.4,0.0001099,2]
[336551858,1724952631844,-163.4,0.0001099,2]
[336551859,1724952631853,-214.35669169,0.00010999,2]
[336551860,1724952631862,-501.49882417,0.00010999,2]
[336551861,1724952631871,-500.0,0.00010999,2]
[336551862,1724952631880,-500.0,0.00010999,2]
[336551863,1724952631894,-500.0,0.00010999,2]
[336551864,1724952631903,-556.06335157,0.00010999,2]
[336551865,1724952631914,-500.0,0.00010999,2]
[336551866,1724952631923,-500.0,0.00010999,2]
[336551867,1724952631933,-189.86129687,0.00010999,2]
[336551868,1724952631943,-827.79157564,0.00011,2]
[336551869,1724952631967,-58572.76094215,0.00011,2]
[336551870,1724952631983,-7552.79375226,0.00011,2]
[336551871,1724952631994,-355.41834579,0.00011,2]
[336551872,1724952632017,-1765.30034146,0.00011,2]
[336551873,1724952632029,-1127.61331614,0.00011,2]
[336551874,1724952632050,-125664.84087542,0.00011,2]
[336551879,1724952637819,-150.81,0.0001099,2]
[336551880,1724952637828,-7146.34596288,0.00010997,2]
[336551881,1724952637838,-23676.52310049,0.00011,2]
[336551882,1724952637850,-421.78588728,0.00011,2]
[336551884,1724952637863,-571.53689557,0.00011,2]
[336551885,1724952637892,-11129.9312,0.00011,2]
[336551886,1724952637904,-1503.10643675,0.00011,2]
[336551887,1724952638022,-756.50129239,0.00011,2]
[336551888,1724952638034,-1393.41253977,0.00011,2]
[336551889,1724952638047,-1559.04212574,0.00011,2]
[336551890,1724952638107,-2364.01451426,0.00011,2]
[336551891,1724952638119,-724.97184001,0.00011,2]
[336551892,1724952638130,-1037.55277893,0.00011,2]
[336551893,1724952638154,-435.55785689,0.00011,2]
[336551906,1724952638441,-425.4,0.00011,2]
[336551910,1724952638476,-17956.08224966,0.00011,2]
[336551912,1724952638488,-2709.48663959,0.00011,2]
[336551914,1724952638500,-871.03255299,0.00011,2]
[336551916,1724952638511,-4674.80830607,0.00011,2]
[336552092,1724952640460,-1249861.83627578,0.00011,2]
[336552094,1724952640469,-302.53,0.00011,2]
[336552096,1724952640478,-250.0,0.00012,2]
[336552098,1724952640487,-3500.0,0.0001215,2]
[336552100,1724952640497,-2900.0,0.0001215,2]
[336552102,1724952640506,-447.0,0.00012589,2]
[336552104,1724952640515,-1205.0,0.00012589,2]
[336552106,1724952640524,-150.81,0.00013151,2]
[336552107,1724952640533,-39511.40858871,0.00013161,2]
[336552109,1724952640543,-816.11,0.00013482,2]
[336552111,1724952640552,-162.6,0.00013482,2]
[336552113,1724952640562,-3500.0,0.0001352,2]
[336552115,1724952640571,-2900.0,0.0001352,2]
[336552117,1724952640581,-299.99,0.0001352,2]
[336552119,1724952640594,-180.77,0.0001352,2]
[336552121,1724952640603,-153.44,0.00013594,2]
[336552123,1724952640613,-499.99,0.00013594,2]
[336552125,1724952640623,-354587.971863,0.000138,2]
[336552127,1724952640633,-300.0,0.00014,2]
[336552129,1724952640643,-150.0,0.00014,2]
[336552131,1724952640652,-219.96,0.00014465,2]
[336552133,1724952640662,-3500.0,0.0001489,2]
[336552134,1724952640671,-2900.0,0.0001489,2]
[336552136,1724952640680,-150.0,0.00014932,2]
[336552138,1724952640690,-4866.0,0.00015,2]
[336552140,1724952640699,-2000.0,0.00015032,2]
[336552142,1724952640708,-569.20576762,0.00015164,2]